fUST/lending_fUST_20260107
["ID","MTS","AMOUNT","RATE_DAILY","PERIOD"]
[400560301,1767719449354,-578.40954655,0.00013821,2]
[400560302,1767719449364,-1000.0,0.00013821,2]
[400560303,1767719449373,-1000.0,0.00013821,2]
[400560304,1767719449382,-1000.0,0.00013821,2]
[400560305,1767719449391,-1001.26007946,0.00013821,2]
[400560306,1767719449401,-1000.0,0.00013821,2]
[400560307,1767719449411,-1000.0,0.00013821,2]
[400560308,1767719449420,-355.0,0.00013829,2]
[400560309,1767719449429,-1680.0,0.00013866,2]
[400560310,1767719449438,-833.08,0.00013869,2]
[400560311,1767719449447,-1106.3,0.00013869,2]
[400560312,1767719449457,-711.39952111,0.00014058,2]
[400560313,1767719449466,-236.85934294,0.00014084,2]
[400560314,1767719449475,-177.40168592,0.00014175,2]
[400560315,1767719449484,-227.50367174,0.00014175,2]
[400560316,1767719449493,-1000.0,0.00014247,2]
[400560317,1767719449502,-1000.0,0.00014247,2]
[400560318,1767719449511,-839.31730288,0.00014247,2]
[400560319,1767719449521,-1063.41663894,0.00014247,2]
[400560320,1767719449530,-1504.65778591,0.00014368,2]
[400560321,1767719449539,-364.76040242,0.00014368,2]
[400560322,1767719449548,-1500.0,0.00014368,2]
[400560323,1767719449558,-1500.0,0.00014368,2]
[400560324,1767719449567,-711.39952111,0.00014437,2]
[400560325,1767719449576,-1022.9539934,0.00014618,2]
[400560326,1767719449585,-415.68002444,0.00014782,2]
[400560327,1767719449594,-690.51130763,0.00014795,2]
[400560328,1767719449604,-770.20741447,0.00014795,2]
[400560329,1767719449613,-711.39952111,0.00014816,2]
[400560330,1767719449623,-720.0,0.00014864,2]
[400560331,1767719449631,-100000.0,0.00014882,2]
[400560332,1767719449641,-2000.0,0.00014916,2]
[400560333,1767719449650,-1130.93955686,0.00014916,2]
[400560334,1767719449659,-833.08,0.00014999,2]
[400560335,1767719449668,-1106.3,0.00014999,2]
[400560336,1767719449677,-1000.0,0.00015,2]
[400560337,1767719449687,-228.2518883,0.00015067,2]
[400560338,1767719449695,-420.194198,0.00015068,2]
[400560339,1767719449705,-800.0,0.00015068,2]
[400560340,1767719449715,-1041.66666667,0.00015232,2]
[400560341,1767719449724,-292.38333672,0.00015296,3]
[400560342,1767719449734,-2500.0,0.00015464,2]
[400560343,1767719449744,-3000.0,0.00016,2]
[400560344,1767719449753,-3000.0,0.0001601,2]
[400560345,1767719449762,-993.85987564,0.00016012,2]
[400560346,1767719449772,-3000.0,0.0001602,2]
[400560347,1767719449781,-3000.0,0.0001603,2]
[400560348,1767719449790,-5554.429529,0.0001604,2]
[400560349,1767719449799,-272.99042915,0.00016084,2]
[400560350,1767719449808,-801.099384,0.00016164,2]
[400560351,1767719449817,-864.0,0.0001635,2]
[400560352,1767719449827,-500.0,0.00016438,2]
[400560353,1767719449836,-594.0421836,0.00016438,2]
[400560354,1767719449846,-369.21348742,0.00016746,5]
[400560355,1767719449855,-833.08,0.00017478,2]
[400560356,1767719449864,-1106.3,0.00017478,2]
[400560357,1767719449875,-1000.0,0.00017985,2]
[400560358,1767719449884,-309.12151536,0.00018084,2]
[400560359,1767719449893,-456.36016217,0.00018196,8]
[400560360,1767719449903,-420.194198,0.00018493,2]
[400560361,1767719449912,-194.0,0.00019068,3]
[400560362,1767719449922,-162.0,0.000192,2]
[400560363,1767719449931,-563.45,0.000192,2]
[400560364,1767719449940,-163.44,0.000192,2]
[400560365,1767719449950,-192.04,0.000192,2]
[400560366,1767719449959,-5205.71,0.000192,2]
[400560367,1767719449969,-2000.0,0.00019335,3]
[400560368,1767719449979,-2000.0,0.00019344,3]
[400560369,1767719449989,-2000.0,0.00019353,3]
[400560370,1767719449998,-2000.0,0.00019361,3]
[400560371,1767719450007,-2000.0,0.0001937,3]
[400560372,1767719450016,-2000.0,0.00019379,3]
[400560373,1767719450026,-2000.0,0.00019388,3]
[400560374,1767719450034,-2000.0,0.00019397,3]
[400560375,1767719450043,-2000.0,0.00019405,3]
[400560376,1767719450052,-2000.0,0.00019414,3]
[400560377,1767719450061,-552.7208917,0.00019646,11]
[400560378,1767719450071,-1991.83840283,0.00019781,3]
[400560379,1767719450080,-1000.0,0.00019784,2]
[400560380,1767719450090,-244.0,0.00019784,2]
[400560381,1767719450099,-833.08,0.00019999,2]
[400560382,1767719450108,-833.08,0.00019999,2]
[400560383,1767719450118,-1106.3,0.00019999,2]
[400560384,1767719450127,-1106.3,0.00019999,2]
[400560385,1767719450136,-151.70782045,0.0002,2]
[400560386,1767719450146,-345.25260157,0.00020084,2]
[400560387,1767719450156,-1365.0,0.0002054,2]
[400560388,1767719450167,-2145.0,0.0002054,2]
[400560389,1767719450176,-628.0,0.0002054,2]
[400560390,1767719450186,-417.0,0.0002063,2]
[400560391,1767719450199,-2000.0,0.00020702,7]
[400560392,1767719450208,-3000.0,0.00021,2]
[400560393,1767719450218,-3000.0,0.0002101,2]
[400560394,1767719450229,-3000.0,0.0002102,2]
[400560395,1767719450239,-3000.0,0.0002103,2]
[400560396,1767719450248,-3000.0,0.0002104,2]
[400560397,1767719450257,-3000.0,0.0002105,2]
[400560398,1767719450267,-3000.0,0.0002106,2]
[400560399,1767719450276,-3000.0,0.0002107,2]
[400560400,1767719450285,-3000.0,0.0002108,2]
[400560401,1767719450294,-3000.0,0.0002109,2]
[400560402,1767719450304,-657.48632529,0.00021096,13]
[400560403,1767719450314,-3000.0,0.000211,2]
[400560404,1767719450323,-3000.0,0.0002111,2]
[400560405,1767719450332,-3000.0,0.0002112,2]
[400560406,1767719450342,-3000.0,0.0002113,2]
[400560407,1767719450351,-3000.0,0.0002114,2]
[400560408,1767719450361,-3000.0,0.0002115,2]
[400560409,1767719450372,-3000.0,0.0002116,2]
[400560410,1767719450382,-3000.0,0.0002117,2]
[400560411,1767719450392,-3000.0,0.0002118,2]
[400560412,1767719450402,-3000.0,0.0002119,2]
[400560413,1767719450413,-3000.0,0.000212,2]
[400560414,1767719450424,-3000.0,0.0002121,2]
[400560415,1767719450434,-3000.0,0.0002122,2]
[400560416,1767719450443,-3000.0,0.0002123,2]
[400560417,1767719450451,-3000.0,0.0002124,2]
[400560418,1767719450460,-3000.0,0.0002125,2]
[400560419,1767719450470,-3000.0,0.0002126,2]
[400560420,1767719450480,-3000.0,0.0002127,2]
[400560421,1767719450489,-3000.0,0.0002128,2]
[400560422,1767719450498,-3000.0,0.0002129,2]
[400560423,1767719450508,-3000.0,0.000213,2]
[400560424,1767719450517,-3000.0,0.0002131,2]
[400560425,1767719450526,-3000.0,0.0002132,2]
[400560426,1767719450535,-3000.0,0.0002133,2]
[400560427,1767719450544,-3000.0,0.0002134,2]
[400560428,1767719450553,-3000.0,0.0002135,2]
[400560429,1767719450562,-3000.0,0.0002136,2]
[400560430,1767719450571,-3000.0,0.0002137,2]
[400560431,1767719450582,-3000.0,0.0002138,2]
[400560432,1767719450591,-3000.0,0.0002139,2]
[400560433,1767719450719,-3000.0,0.000214,2]
[400560434,1767719450731,-3000.0,0.0002141,2]
[400560435,1767719450741,-3000.0,0.0002142,2]
[400560436,1767719450751,-4936.902076,0.0002143,2]
[400560437,1767719450760,-2000.0,0.00021667,7]
[400560438,1767719450772,-556.0,0.00021752,2]
[400560439,1767719450782,-556.0,0.00021761,2]
[400560440,1767719450793,-1000.0,0.00021762,10]
[400560441,1767719450803,-492.0,0.00021762,10]
[400560442,1767719450814,-556.0,0.00021777,2]
[400560443,1767719450823,-556.0,0.00021822,2]
[400560444,1767719450833,-556.0,0.00021888,2]
[400560445,1767719450842,-5205.71,0.000219,2]
[400560446,1767719450851,-420.194198,0.00021918,2]
[400560447,1767719450862,-556.0,0.0002194,2]
[400560448,1767719450872,-833.08,0.00021944,2]
[400560449,1767719450882,-1106.3,0.00021944,2]
[400560450,1767719450892,-833.08,0.00021989,2]
[400560451,1767719450901,-833.08,0.00021989,2]
[400560452,1767719450911,-833.08,0.00021989,2]
[400560453,1767719450920,-833.08,0.00021989,2]
[400560454,1767719450930,-833.24672867,0.00021989,2]
[400560455,1767719450940,-1106.3,0.00021989,2]
[400560456,1767719450950,-1106.3,0.00021989,2]
[400560457,1767719450960,-1106.3,0.00021989,2]
[400560458,1767719450969,-1106.3,0.00021989,2]
[400560459,1767719450980,-1106.43437694,0.00021989,2]
[400560460,1767719450990,-404.99,0.00022,2]
[400560461,1767719450999,-381.38368779,0.00022084,2]
[400560462,1767719451009,-556.0,0.00022084,2]
[400560463,1767719451018,-556.0,0.00022159,2]
[400560464,1767719451026,-556.0,0.00022215,2]
[400560465,1767719451036,-556.0,0.00022261,2]
[400560466,1767719451045,-556.0,0.00022276,2]
[400560467,1767719451054,-695.45,0.000223,7]
[400560468,1767719451063,-770.02937395,0.00022546,16]
[400560469,1767719451072,-556.0,0.0002257,2]
[400560470,1767719451081,-2000.0,0.00022631,7]
[400560471,1767719451091,-556.0,0.00022697,2]
[400560472,1767719451100,-556.0,0.00022847,2]
[400560473,1767719451109,-556.0,0.00022876,2]
[400560474,1767719451118,-1041.66666667,0.00023,3]
[400560475,1767719451127,-556.0,0.00023294,2]
[400560476,1767719451136,-151.0,0.00023529,2]
[400560477,1767719451145,-1365.0,0.0002354,2]
[400560478,1767719451156,-2145.0,0.0002354,2]
[400560479,1767719451166,-628.0,0.0002354,2]
[400560480,1767719451175,-556.0,0.00023572,2]
[400560481,1767719451183,-2000.0,0.00023596,7]
[400560482,1767719451193,-417.0,0.0002363,2]
[400560483,1767719451202,-556.0,0.00023635,2]
[400560484,1767719451211,-556.0,0.00023733,2]
[400560485,1767719451220,-556.0,0.00023799,2]
[400560486,1767719451231,-556.0,0.00023901,2]
[400560487,1767719451240,-556.0,0.00023904,2]
[400560488,1767719451249,-556.0,0.00023906,2]
[400560489,1767719451259,-556.0,0.00023912,2]
[400560490,1767719451269,-1000.0,0.00023938,10]
[400560491,1767719451279,-791.0,0.00023938,10]
[400560492,1767719451289,-556.0,0.00023951,2]
[400560493,1767719451299,-889.84552007,0.00023995,19]
[400560494,1767719451308,-417.514774,0.00024084,2]
[400560495,1767719451319,-318.0,0.00024422,2]
[400560496,1767719451330,-2000.0,0.00024561,7]
[400560497,1767719451339,-370.0,0.00024622,2]
[400560498,1767719451348,-5205.71,0.000247,2]
[400560499,1767719451357,-404.99,0.000248,2]
[400560500,1767719451366,-3412.7690487,0.000248,2]
[400560501,1767719451376,-151.0,0.000249,7]
[400560502,1767719451386,-151.0,0.000249,7]
[400560503,1767719451396,-151.0,0.000249,7]
[400560504,1767719451405,-151.0,0.000249,7]
[400560505,1767719451416,-151.0,0.000249,7]
[400560506,1767719451426,-151.0,0.000249,7]
[400560507,1767719451436,-151.0,0.000249,7]
[400560508,1767719451445,-151.0,0.000249,7]
[400560509,1767719451454,-151.0,0.000249,7]
[400560510,1767719451463,-151.0,0.000249,7]
[400560511,1767719451472,-151.0,0.000249,7]
[400560512,1767719451482,-151.0,0.000249,7]
[400560513,1767719451491,-218.100546,0.000249,7]
[400560514,1767719451500,-218.100546,0.000249,7]
[400560515,1767719451509,-218.100546,0.000249,7]
[400560516,1767719451517,-218.100546,0.000249,7]
[400560517,1767719451527,-169.766567,0.000249,7]
[400560518,1767719451536,-151.0,0.000249,7]
[400560519,1767719451545,-151.0,0.000249,7]
[400560520,1767719451553,-151.0,0.000249,7]
[400560521,1767719451563,-151.0,0.000249,7]
[400560522,1767719451572,-151.0,0.000249,7]
[400560523,1767719451581,-151.0,0.000249,7]
[400560524,1767719451590,-151.0,0.000249,7]
[400560525,1767719451599,-151.0,0.000249,7]
[400560526,1767719451608,-151.0,0.000249,7]
[400560527,1767719451617,-151.0,0.000249,7]
[400560528,1767719451627,-151.0,0.000249,7]
[400560529,1767719451636,-250.0,0.000249,2]
[400560530,1767719451645,-250.0,0.000249,2]
[400560531,1767719451654,-1041.66666667,0.000249,7]
[400560532,1767719451663,-151.0,0.000249,7]
[400560533,1767719451672,-7789.04690114,0.000249,2]
[400560534,1767719579856,200.0,0.00030136,120]
[400560539,1767719723990,-647.19575968,0.00012122,2]
[400560540,1767719726084,-155.11869083,0.00012122,2]
[400560541,1767719727610,-335.56525831,0.00012122,2]
[400560542,1767719729594,-248.71936031,0.00012122,2]
[400560543,1767719729657,258.0,0.00023829,120]
[400560546,1767719741335,1035.0,0.00023641,120]
[400560547,1767719742749,1035.0,0.00024823,120]
[400560548,1767719743971,1035.0,0.00026064,120]
[400560549,1767719745293,1035.0,0.00027368,120]
[400560550,1767719746599,1035.0,0.00028736,120]
[400560551,1767719765435,163.18,7.634e-05,2]
[400560552,1767719765869,195.82,7.939e-05,2]
[400560553,1767719766320,228.46,8.245e-05,2]
[400560554,1767719766773,261.09,8.55e-05,2]
[400560555,1767719767201,293.73,8.855e-05,2]
[400560556,1767719767919,326.37,9.161e-05,2]
[400560558,1767719917803,-275.79863324,0.00012122,2]
[400560559,1767719973865,157.1,7.475e-05,2]
[400560560,1767720009231,518.0,0.0002446,120]
[400560561,1767720010769,518.0,0.00025683,120]
[400560562,1767720012067,518.0,0.00026967,120]
[400560563,1767720013429,518.0,0.00028315,120]
[400560564,1767720014912,518.0,0.00029731,120]
[400560565,1767720067282,-302.85397124,0.00012122,2]
[400560566,1767720109546,154.48,7.319e-05,2]
[400560567,1767720110059,173.79,7.581e-05,2]
[400560568,1767720135074,398.0,0.00030136,120]
[400560569,1767720142309,-500.0,0.00011982,2]
[400560570,1767720142332,-116.9653586,0.00012122,2]
[400560571,1767720178538,160.89,7.033e-05,2]
[400560572,1767720179140,183.88,7.294e-05,2]
[400560573,1767720179568,206.86,7.554e-05,2]
[400560574,1767720180037,229.84,7.815e-05,2]
[400560575,1767720310783,259.0,0.00025052,120]
[400560576,1767720312105,259.0,0.00026304,120]
[400560577,1767720313516,259.0,0.00027619,120]
[400560578,1767720314869,259.0,0.00029,120]
[400560636,1767720367263,-171.18067016,0.00012122,2]
[400560637,1767720367287,-54.26379777,0.00012122,2]
[400560638,1767720371066,-155.7208026,0.00012122,2]
[400560639,1767720373227,-31.4261641,0.00012122,2]
[400560640,1767720373251,-231.87954565,0.00012122,2]
[400560641,1767720374604,-163.04901972,0.00012122,2]
[400560642,1767720384200,163.21,8.672e-05,2]
[400560643,1767720384634,186.53,8.993e-05,2]
[400560667,1767720397244,-200.00000003,9.314e-05,2]
[400560669,1767720400949,-9.83999997,9.314e-05,2]
[400560670,1767720400974,-181.64681771,9.635e-05,2]
[400560852,1767720608290,162.0,0.00025563,120]
[400560853,1767720609570,162.0,0.00026842,120]
[400560854,1767720610809,162.0,0.00028184,120]
[400560855,1767720612258,162.0,0.00029593,120]
[400560876,1767720632522,-226.0,0.0001,2]
[400560877,1767720632534,-236.58254918,0.00011061,2]
[400560878,1767720632544,-3370.48026046,0.00012122,2]
[400560879,1767720632554,-300.0,0.00012795,2]
[400560880,1767720632564,-300.0,0.00012795,2]
[400560881,1767720632573,-11666.0,0.00012796,2]
[400560882,1767720632583,-500.0,0.00012796,2]
[400560883,1767720632593,-500.0,0.00012797,2]
[400560884,1767720632602,-186.98575797,0.00012833,2]
[400560885,1767720632611,-1399.10989028,0.00012835,2]
[400560887,1767720632624,-31485.82,0.00012835,2]
[400560919,1767720638732,-967115.07010972,0.00012835,2]
[400560920,1767720638746,-18954.36299014,0.00012899,2]
[400560921,1767720638756,-500.0,0.00012899,2]
[400560922,1767720638766,-500.0,0.00012899,2]
[400560923,1767720638775,-500.0,0.00012899,2]
[400560925,1767720638785,-500.0,0.00012899,2]
[400560926,1767720638795,-250.44659614,0.00012899,2]
[400560927,1767720638804,-500.0,0.00012899,2]
[400560928,1767720638813,-455.89827375,0.00012899,2]
[400560929,1767720638824,-500.0,0.00012899,2]
[400560930,1767720638833,-500.0,0.00012899,2]
[400560931,1767720638843,-172.79317984,0.00012899,2]
[400560932,1767720638853,-530.0,0.00012899,2]
[400560933,1767720638862,-211.14739907,0.00012899,2]
[400560934,1767720638875,-500.0,0.00012899,2]
[400560935,1767720638885,-11666.0,0.00012933,2]
[400560937,1767720638894,-569.00000001,0.00012933,2]
[400560939,1767720638904,-500.0,0.00012934,2]
[400560941,1767720638914,-570.45688455,0.00012934,2]
[400560943,1767720638924,-500.0,0.00012934,2]
[400560945,1767720638934,-1125.04758268,0.00012934,2]
[400560947,1767720638944,-1125.04758268,0.00012934,2]
[400560948,1767720638954,-500.0,0.00012934,2]
[400560949,1767720638963,-1125.04758268,0.00012934,2]
[400560950,1767720638972,-1125.04758268,0.00012934,2]
[400560951,1767720638982,-500.0,0.00012934,2]
[400560952,1767720638991,-1125.04758268,0.00012934,2]
[400560953,1767720639000,-1125.04758268,0.00012934,2]
[400560954,1767720639011,-500.0,0.00012934,2]
[400560955,1767720639020,-1125.04758268,0.00012934,2]
[400560956,1767720639029,-318.42871843,0.00012934,2]
[400560957,1767720639039,-1125.04758268,0.00012934,2]
[400560958,1767720639049,-1125.04758268,0.00012934,2]
[400560959,1767720639059,-1125.04758268,0.00012934,2]
[400560960,1767720639069,-1125.04758268,0.00012934,2]
[400560961,1767720639079,-1125.04758268,0.00012934,2]
[400560962,1767720639089,-500.0,0.00012934,2]
[400560963,1767720639099,-1125.04758268,0.00012934,2]
[400560964,1767720639109,-1125.04758268,0.00012934,2]
[400560965,1767720639118,-1125.04758268,0.00012934,2]
[400560966,1767720639129,-1125.04758268,0.00012934,2]
[400560967,1767720639138,-1196.64151975,0.00012934,2]
[400560968,1767720639149,-1196.64151975,0.00012934,2]
[400560969,1767720639159,-1196.64151975,0.00012934,2]
[400560970,1767720639169,-1196.64151975,0.00012934,2]
[400560971,1767720639179,-1196.64151975,0.00012934,2]
[400560972,1767720639188,-1196.64151975,0.00012934,2]
[400560973,1767720639197,-1196.64151975,0.00012934,2]
[400560974,1767720639206,-1196.64151975,0.00012934,2]
[400560976,1767720639215,-1196.64151975,0.00012934,2]
[400560977,1767720639224,-1788.74046298,0.00013049,2]
[400560979,1767720639233,-279.16740803,0.00013061,2]
[400560981,1767720639242,-151.0,0.00013065,2]
[400560983,1767720639251,-151.0,0.00013065,2]
[400560984,1767720639260,-260.81071806,0.00013065,2]
[400560986,1767720639269,-242.17,0.00013069,2]
[400560988,1767720639278,-11666.0,0.0001307,2]
[400560990,1767720639288,-500.0,0.00013071,2]
[400560992,1767720639297,-948.4631447,0.00013149,2]
[400560994,1767720639306,-1788.74046295,0.00013161,2]
[400560996,1767720639315,-11666.0,0.00013207,2]
[400560998,1767720639325,-500.0,0.00013208,2]
[400561000,1767720639334,-155.4754909,0.00013208,2]
[400561002,1767720639343,-167.48106999,0.00013273,2]
[400561004,1767720639352,-500.0,0.00013273,2]
[400561006,1767720639362,-500.45942406,0.00013273,2]
[400561008,1767720639371,-500.0,0.00013273,2]
[400561010,1767720639380,-500.0,0.00013273,2]
[400561012,1767720639390,-435.85146514,0.00013273,2]
[400561014,1767720639399,-500.0,0.00013273,2]
[400561016,1767720639409,-500.0,0.00013273,2]
[400561018,1767720639418,-500.0,0.00013273,2]
[400561020,1767720639428,-500.0,0.00013273,2]
[400561024,1767720639446,-500.0,0.00013273,2]
[400561026,1767720639457,-500.0,0.00013273,2]
[400561028,1767720639470,-500.0,0.00013273,2]
[400561030,1767720639480,-500.0,0.00013273,2]
[400561032,1767720639489,-500.0,0.00013273,2]
[400561034,1767720639503,-500.0,0.00013273,2]
[400561036,1767720639513,-500.0,0.00013273,2]
[400561038,1767720639523,-500.0,0.00013273,2]
[400561040,1767720639534,-606.03605592,0.00013273,2]
[400561042,1767720639544,-500.0,0.00013273,2]
[400561044,1767720639554,-500.93094912,0.00013273,2]
[400561046,1767720639564,-500.0,0.00013273,2]
[400561048,1767720639574,-500.0,0.00013273,2]
[400561050,1767720639584,-500.0,0.00013273,2]
[400561052,1767720639593,-165.53460267,0.00013273,2]
[400561054,1767720639602,-283.37004819,0.00013273,2]
[400561056,1767720639611,-465.83435132,0.00013273,2]
[400561058,1767720639621,-500.0,0.00013273,2]
[400561060,1767720639630,-500.0,0.00013273,2]
[400561062,1767720639640,-500.0,0.00013273,2]
[400561064,1767720639650,-500.0,0.00013273,2]
[400561066,1767720639660,-500.0,0.00013273,2]
[400561068,1767720639669,-500.0,0.00013273,2]
[400561070,1767720639678,-500.0,0.00013273,2]
[400561072,1767720639687,-500.0,0.00013273,2]
[400561074,1767720639696,-500.0,0.00013273,2]
[400561076,1767720639706,-500.0,0.00013273,2]
[400561078,1767720639715,-161.85370912,0.00013273,2]
[400561079,1767720639724,-500.75815525,0.00013273,2]
[400561081,1767720639733,-500.0,0.00013273,2]
[400561082,1767720639742,-500.0,0.00013273,2]
[400561083,1767720639752,-500.0,0.00013273,2]
[400561084,1767720639761,-268.70604187,0.00013273,2]
[400561085,1767720639770,-500.0,0.00013273,2]
[400561086,1767720639780,-500.0,0.00013273,2]
[400561087,1767720639789,-500.0,0.00013273,2]
[400561088,1767720639799,-171.59960392,0.00013273,2]
[400561089,1767720639808,-185.45250914,0.00013273,2]
[400561090,1767720639817,-500.89572759,0.00013273,2]
[400561091,1767720639827,-500.0,0.00013273,2]
[400561092,1767720639838,-500.0,0.00013273,2]
[400561093,1767720639848,-210.68917911,0.00013273,2]
[400561094,1767720639858,-500.0,0.00013273,2]
[400561095,1767720639868,-500.0,0.00013273,2]
[400561096,1767720639877,-500.0,0.00013273,2]
[400561097,1767720639887,-568.51559551,0.00013273,2]
[400561098,1767720639897,-500.39596396,0.00013273,2]
[400561099,1767720639907,-500.0,0.00013273,2]
[400561100,1767720639916,-500.0,0.00013273,2]
[400561101,1767720639926,-500.0,0.00013273,2]
[400561102,1767720639938,-500.0,0.00013273,2]
[400561103,1767720639948,-159.32617446,0.00013273,2]
[400561104,1767720639959,-500.0,0.00013273,2]
[400561105,1767720639968,-536.41268697,0.00013273,2]
[400561106,1767720639978,-500.0,0.00013273,2]
[400561107,1767720639987,-500.0,0.00013273,2]
[400561108,1767720639997,-232.41734948,0.00013273,2]
[400561109,1767720640006,-500.0,0.00013273,2]
[400561110,1767720640016,-500.49523279,0.00013273,2]
[400561111,1767720640025,-1788.74046295,0.00013274,2]
[400561112,1767720640035,-11666.0,0.00013344,2]
[400561113,1767720640047,-500.0,0.00013345,2]
[400561114,1767720640060,-1788.74046295,0.00013386,2]
[400561115,1767720640070,-300.0,0.00013434,2]
[400561116,1767720640081,-300.0,0.00013434,2]
[400561117,1767720640090,-300.0,0.00013434,2]
[400561118,1767720640101,-300.0,0.00013434,2]
[400561119,1767720640110,-300.0,0.00013434,2]
[400561120,1767720640120,-300.0,0.00013434,2]
[400561121,1767720640130,-300.0,0.00013434,2]
[400561122,1767720640139,-300.0,0.00013434,2]
[400561123,1767720640148,-300.0,0.00013434,2]
[400561124,1767720640158,-300.0,0.00013434,2]
[400561125,1767720640167,-300.0,0.00013434,2]
[400561126,1767720640176,-300.0,0.00013434,2]
[400561127,1767720640185,-300.0,0.00013434,2]
[400561128,1767720640194,-300.0,0.00013434,2]
[400561129,1767720640204,-300.0,0.00013434,2]
[400561130,1767720640213,-11666.0,0.00013481,2]
[400561131,1767720640222,-500.0,0.00013482,2]
[400561132,1767720640232,-1788.74046295,0.00013498,2]
[400561133,1767720640242,-475.0,0.00013598,2]
[400561134,1767720640251,-475.0,0.00013598,2]
[400561135,1767720640262,-475.0,0.00013598,2]
[400561136,1767720640271,-475.0,0.00013599,2]
[400561137,1767720640281,-475.0,0.00013599,2]
[400561138,1767720640294,-475.0,0.00013599,2]
[400561139,1767720640304,-11666.0,0.00013618,2]
[400561140,1767720640313,-500.0,0.00013619,2]
[400561141,1767720640325,-300.0,0.00013673,2]
[400561142,1767720640335,-577.08,0.00013698,2]
[400561143,1767720640344,-500.0,0.00013698,2]
[400561144,1767720640354,-500.0,0.00013698,2]
[400561145,1767720640365,-500.0,0.00013698,2]
[400561146,1767720640374,-500.0,0.00013698,2]
[400561147,1767720640384,-500.0,0.00013698,2]
[400561148,1767720640394,-466.89772029,0.00013698,2]
[400561150,1767720640403,-17906.3209483,0.00013699,2]
[400561151,1767720640413,-1000.0,0.00013699,2]
[400561152,1767720640423,-500.0,0.00013699,2]
[400561153,1767720640432,-500.71714379,0.00013699,2]
[400561154,1767720640442,-504.37236451,0.00013699,2]
[400561155,1767720640452,-500.0,0.00013699,2]
[400561157,1767720640462,-501.56829016,0.00013699,2]
[400561159,1767720640472,-500.68695717,0.00013699,2]
[400561161,1767720640482,-500.68900305,0.00013699,2]
[400561163,1767720640494,-500.0,0.00013699,2]
[400561164,1767720640505,-526.06901587,0.00013699,2]
[400561165,1767720640515,-500.0,0.00013699,2]
[400561166,1767720640525,-500.74532212,0.00013699,2]
[400561167,1767720640535,-500.0,0.00013699,2]
[400561168,1767720640544,-500.84600982,0.00013699,2]
[400561169,1767720640554,-500.0,0.00013699,2]
[400561170,1767720640563,-501.17135178,0.00013699,2]
[400561172,1767720640574,-500.0,0.00013699,2]
[400561173,1767720640585,-500.2666594,0.00013699,2]
[400561176,1767720640766,-500.93963039,0.00013699,2]
[400561178,1767720640777,-500.0,0.00013699,2]
[400561180,1767720640786,-500.61401424,0.00013699,2]
[400561181,1767720640796,-500.70390691,0.00013699,2]
[400561182,1767720640805,-254.27500282,0.00013699,2]
[400561183,1767720640815,-500.0,0.00013699,2]
[400561184,1767720640824,-501.00450759,0.00013699,2]
[400561185,1767720640836,-500.7233053,0.00013699,2]
[400561186,1767720640845,-540.98419624,0.00013699,2]
[400561187,1767720640855,-500.0,0.00013699,2]
[400561188,1767720640864,-502.04480355,0.00013699,2]
[400561189,1767720640873,-500.76143899,0.00013699,2]
[400561190,1767720640884,-500.0,0.00013699,2]
[400561191,1767720640894,-634.09365022,0.00013699,2]